[Event "*** Titled Tuesday Blitz"]
[Site "Chess.com"]
[Date "2021.04.06"]
[Round "7"]
[White "GameOverBro"]
[Black "Didici"]
[Result "1/2-1/2"]
[WhiteElo "2530"]
[BlackElo "2650"]
[TimeControl "180+1"]
[EndTime "11:19:28 PDT"]
[Termination "Game drawn by repetition"]

1. e4 {[%clk 0:03:00.9]} 1... e5 {[%clk 0:02:57.9]} 2. Nf3 {[%clk 0:03:00.6]}
2... Nc6 {[%clk 0:02:57.5]} 3. Bb5 {[%clk 0:03:00.6]} 3... a6 {[%clk 0:02:57]}
4. Ba4 {[%clk 0:03:00.7]} 4... d6 {[%clk 0:02:56.7]} 5. d4 {[%clk 0:02:56.6]}
5... b5 {[%clk 0:02:55.3]} 6. Bb3 {[%clk 0:02:56.5]} 6... Nxd4 {[%clk
0:02:55.2]} 7. Nxd4 {[%clk 0:02:56.3]} 7... exd4 {[%clk 0:02:56.1]} 8. Bd5
{[%clk 0:02:56.7]} 8... Rb8 {[%clk 0:02:56.5]} 9. Qxd4 {[%clk 0:02:56]} 9... Ne7
{[%clk 0:02:55.9]} 10. a4 {[%clk 0:02:29.7]} 10... c5 {[%clk 0:02:52.3]} 11. Qd3
{[%clk 0:02:23.2]} 11... Nxd5 {[%clk 0:02:49]} 12. exd5 {[%clk 0:02:17]} 12...
Be7 {[%clk 0:02:48.3]} 13. axb5 {[%clk 0:02:15]} 13... axb5 {[%clk 0:02:47]} 14.
O-O {[%clk 0:02:14.4]} 14... O-O {[%clk 0:02:44.8]} 15. Nc3 {[%clk 0:02:14.5]}
15... b4 {[%clk 0:02:39.7]} 16. Ne4 {[%clk 0:02:13.6]} 16... Bf5 {[%clk
0:02:30.7]} 17. Nf6+ {[%clk 0:02:03.5]} 17... Bxf6 {[%clk 0:02:30.3]} 18. Qxf5
{[%clk 0:02:04.4]} 18... Re8 {[%clk 0:02:22.2]} 19. Ra6 {[%clk 0:01:55.7]} 19...
Rb6 {[%clk 0:02:11]} 20. Rxb6 {[%clk 0:01:51.6]} 20... Qxb6 {[%clk 0:02:11.9]}
21. b3 {[%clk 0:01:43.5]} 21... Be5 {[%clk 0:01:33.8]} 22. g3 {[%clk 0:01:20]}
22... g6 {[%clk 0:01:29.4]} 23. Qd7 {[%clk 0:01:17]} 23... Qd8 {[%clk
0:01:23.2]} 24. Qb5 {[%clk 0:01:07.9]} 24... Qa8 {[%clk 0:01:16.3]} 25. Qd3
{[%clk 0:01:04.9]} 25... h5 {[%clk 0:01:09.1]} 26. h4 {[%clk 0:01:03.7]} 26...
Qc8 {[%clk 0:00:53.8]} 27. Kg2 {[%clk 0:01:00.7]} 27... Qg4 {[%clk 0:00:43.4]}
28. Re1 {[%clk 0:00:58.4]} 28... Ra8 {[%clk 0:00:40.1]} 29. Be3 {[%clk 0:00:54]}
29... Ra2 {[%clk 0:00:36.8]} 30. Bxc5 {[%clk 0:00:53.8]} 30... Bxg3 {[%clk
0:00:33.2]} 31. Re8+ {[%clk 0:00:49.9]} 31... Kh7 {[%clk 0:00:31.5]} 32. Qxg3
{[%clk 0:00:42.5]} 32... Qd7 {[%clk 0:00:15.8]} 33. Re2 {[%clk 0:00:08.1]} 33...
dxc5 {[%clk 0:00:15.5]} 34. Qe5 {[%clk 0:00:08.6]} 34... Qg4+ {[%clk 0:00:14]}
35. Kh2 {[%clk 0:00:06.4]} 35... Qxh4+ {[%clk 0:00:13.7]} 36. Kg2 {[%clk
0:00:07.1]} 36... Qg4+ {[%clk 0:00:14.1]} 37. Kh2 {[%clk 0:00:07.8]} 37... Ra1
{[%clk 0:00:13.3]} 38. Re1 {[%clk 0:00:06.6]} 38... Rxe1 {[%clk 0:00:08.1]} 39.
Qxe1 {[%clk 0:00:07.5]} 39... Qh4+ {[%clk 0:00:08.4]} 40. Kg2 {[%clk 0:00:07.9]}
40... Qg5+ {[%clk 0:00:08.8]} 41. Kh2 {[%clk 0:00:08.4]} 41... Qxd5 {[%clk
0:00:09.2]} 42. Qe3 {[%clk 0:00:07.6]} 42... Qd4 {[%clk 0:00:08.7]} 43. Qf3
{[%clk 0:00:06.2]} 43... Kg7 {[%clk 0:00:08]} 44. Kg1 {[%clk 0:00:06.2]} 44...
h4 {[%clk 0:00:07.9]} 45. Qe2 {[%clk 0:00:04.2]} 45... g5 {[%clk 0:00:08]} 46.
Qh5 {[%clk 0:00:03.8]} 46... Qf4 {[%clk 0:00:07.3]} 47. Qe2 {[%clk 0:00:03.8]}
47... h3 {[%clk 0:00:07.3]} 48. Kh1 {[%clk 0:00:03.3]} 48... g4 {[%clk
0:00:06.8]} 49. Kg1 {[%clk 0:00:03.4]} 49... Kh6 {[%clk 0:00:04.9]} 50. Kh1
{[%clk 0:00:03.7]} 50... Kh5 {[%clk 0:00:03.3]} 51. Kg1 {[%clk 0:00:04]} 51...
Kh4 {[%clk 0:00:02.3]} 52. Qe7+ {[%clk 0:00:03.8]} 52... Qg5 {[%clk 0:00:02.5]}
53. Qxf7 {[%clk 0:00:03.9]} 53... g3 {[%clk 0:00:02.3]} 54. Qh7+ {[%clk
0:00:04.4]} 54... Kg4 {[%clk 0:00:02.4]} 55. Qd7+ {[%clk 0:00:04.9]} 55... Qf5
{[%clk 0:00:02.4]} 56. Qxf5+ {[%clk 0:00:04.2]} 56... Kxf5 {[%clk 0:00:03.3]}
57. fxg3 {[%clk 0:00:04.9]} 57... Kg5 {[%clk 0:00:03.6]} 58. Kh1 {[%clk
0:00:05.1]} 58... Kf5 {[%clk 0:00:03.4]} 59. Kg1 {[%clk 0:00:05.5]} 59... Kg5
{[%clk 0:00:03.8]} 60. Kh1 {[%clk 0:00:05.9]} 60... Kh5 {[%clk 0:00:04.2]} 61.
Kg1 {[%clk 0:00:06.1]} 61... Kg5 {[%clk 0:00:04.6]} 1/2-1/2

[Event "*** Titled Tuesday Blitz"]
[Site "Chess.com"]
[Date "2021.04.06"]
[Round "7"]
[White "HackingKid98"]
[Black "Kretov_Evgenij"]
[Result "1/2-1/2"]
[WhiteElo "2493"]
[BlackElo "2612"]
[TimeControl "180+1"]
[EndTime "11:19:28 PDT"]
[Termination "Game drawn by repetition"]

1. d4 {[%clk 0:03:00.9]} 1... Nf6 {[%clk 0:02:52.3]} 2. c4 {[%clk 0:02:58.5]}
2... c5 {[%clk 0:02:52.5]} 3. Nf3 {[%clk 0:02:58.1]} 3... cxd4 {[%clk
0:02:52.5]} 4. Nxd4 {[%clk 0:02:59]} 4... Nc6 {[%clk 0:02:52.9]} 5. Nc3 {[%clk
0:02:58.7]} 5... g6 {[%clk 0:02:52.6]} 6. g3 {[%clk 0:02:58.3]} 6... d6 {[%clk
0:02:52.5]} 7. Bg2 {[%clk 0:02:57]} 7... Bd7 {[%clk 0:02:53]} 8. Nb3 {[%clk
0:02:57]} 8... Bg7 {[%clk 0:02:53.1]} 9. c5 {[%clk 0:02:57]} 9... dxc5 {[%clk
0:02:37.9]} 10. Nxc5 {[%clk 0:02:57.9]} 10... Bc8 {[%clk 0:02:37]} 11. Qxd8+
{[%clk 0:02:53.5]} 11... Nxd8 {[%clk 0:02:33.6]} 12. O-O {[%clk 0:02:43.6]}
12... Nd7 {[%clk 0:02:29.5]} 13. Be3 {[%clk 0:02:34.1]} 13... Nxc5 {[%clk
0:02:26.2]} 14. Bxc5 {[%clk 0:02:35]} 14... Ne6 {[%clk 0:02:24.9]} 15. Ba3
{[%clk 0:02:31.8]} 15... Rb8 {[%clk 0:02:20.1]} 16. Nd5 {[%clk 0:02:24.7]} 16...
Nd4 {[%clk 0:02:06.7]} 17. Bxe7 {[%clk 0:02:04.7]} 17... Nxe2+ {[%clk
0:02:04.4]} 18. Kh1 {[%clk 0:02:03.8]} 18... Be6 {[%clk 0:02:03.7]} 19. Ba3
{[%clk 0:01:50.8]} 19... Kd7 {[%clk 0:01:54]} 20. Rad1 {[%clk 0:01:40.4]} 20...
Nd4 {[%clk 0:01:52.9]} 21. Bc5 {[%clk 0:01:33.2]} 21... Nc6 {[%clk 0:01:51.8]}
22. Nb4+ {[%clk 0:00:59.4]} 22... Kc8 {[%clk 0:01:47]} 23. Rd2 {[%clk 0:00:38]}
23... Rd8 {[%clk 0:01:44.6]} 24. Rfd1 {[%clk 0:00:36.7]} 24... Rxd2 {[%clk
0:01:44.2]} 25. Rxd2 {[%clk 0:00:37.6]} 25... Nxb4 {[%clk 0:01:26.7]} 26. Bxb4
{[%clk 0:00:37.1]} 26... Bxa2 {[%clk 0:01:22.7]} 27. Bd6 {[%clk 0:00:36.4]}
27... Ra8 {[%clk 0:01:21.3]} 28. Rc2+ {[%clk 0:00:22.6]} 28... Kd7 {[%clk
0:01:19.6]} 29. Bxb7 {[%clk 0:00:23.2]} 29... Rd8 {[%clk 0:01:16.1]} 30. Bc7
{[%clk 0:00:20.5]} 30... Rf8 {[%clk 0:01:07.9]} 31. Bf4 {[%clk 0:00:20.1]} 31...
Bf6 {[%clk 0:00:52.4]} 32. Rd2+ {[%clk 0:00:19.3]} 32... Ke6 {[%clk 0:00:50.7]}
33. Rd6+ {[%clk 0:00:18.6]} 33... Ke7 {[%clk 0:00:50.6]} 34. Ra6 {[%clk
0:00:18.2]} 34... Be6 {[%clk 0:00:46.8]} 35. Bd6+ {[%clk 0:00:16.7]} 35... Ke8
{[%clk 0:00:47.2]} 36. Bxf8 {[%clk 0:00:16.7]} 36... Kxf8 {[%clk 0:00:47.6]} 37.
Rxa7 {[%clk 0:00:17]} 37... Bxb2 {[%clk 0:00:48.2]} 38. Ra8+ {[%clk 0:00:15.3]}
38... Ke7 {[%clk 0:00:47.8]} 39. Kg2 {[%clk 0:00:16.2]} 39... h5 {[%clk
0:00:48.1]} 40. Bf3 {[%clk 0:00:15.3]} 40... Be5 {[%clk 0:00:48]} 41. h4 {[%clk
0:00:15]} 41... Bd4 {[%clk 0:00:47.9]} 42. Rb8 {[%clk 0:00:14.1]} 42... Bc5
{[%clk 0:00:47.8]} 43. Rb7+ {[%clk 0:00:13.9]} 43... Kd6 {[%clk 0:00:47.7]} 44.
Rb8 {[%clk 0:00:12.8]} 44... Kc7 {[%clk 0:00:47.3]} 45. Rb1 {[%clk 0:00:12.7]}
45... Kd6 {[%clk 0:00:47.6]} 46. Rd1+ {[%clk 0:00:12.7]} 46... Ke5 {[%clk
0:00:47.5]} 47. Re1+ {[%clk 0:00:12.3]} 47... Kf6 {[%clk 0:00:46.8]} 48. Rd1
{[%clk 0:00:13.2]} 48... Ke5 {[%clk 0:00:47.1]} 49. Rd2 {[%clk 0:00:12.9]} 49...
Bd4 {[%clk 0:00:46.6]} 50. Re2+ {[%clk 0:00:12.5]} 50... Kf6 {[%clk 0:00:46.6]}
51. Rc2 {[%clk 0:00:12.4]} 51... Ke5 {[%clk 0:00:46.7]} 52. Rc6 {[%clk
0:00:12.1]} 52... Ba7 {[%clk 0:00:45.1]} 53. Ra6 {[%clk 0:00:11.2]} 53... Bd4
{[%clk 0:00:44.8]} 54. Ra5+ {[%clk 0:00:11.1]} 54... Kf6 {[%clk 0:00:45]} 55.
Bd5 {[%clk 0:00:09.6]} 55... Bf5 {[%clk 0:00:44.3]} 56. Ra6+ {[%clk 0:00:09]}
56... Ke7 {[%clk 0:00:42.7]} 57. Ra4 {[%clk 0:00:08.1]} 57... Bc5 {[%clk
0:00:41.6]} 58. Ra5 {[%clk 0:00:07.8]} 58... Bd4 {[%clk 0:00:41.7]} 59. Rb5
{[%clk 0:00:07.1]} 59... Kf6 {[%clk 0:00:40.5]} 60. Rb7 {[%clk 0:00:06.6]} 60...
Ke5 {[%clk 0:00:39]} 61. Bxf7 {[%clk 0:00:05.7]} 61... Be4+ {[%clk 0:00:39.1]}
62. f3 {[%clk 0:00:05]} 62... Bxb7 {[%clk 0:00:39.2]} 63. Bxg6 {[%clk
0:00:05.5]} 63... Be3 {[%clk 0:00:37]} 64. Bxh5 {[%clk 0:00:06.4]} 64... Bc6
{[%clk 0:00:35.1]} 65. Bg4 {[%clk 0:00:07.3]} 65... Kf6 {[%clk 0:00:34.7]} 66.
Kh3 {[%clk 0:00:07.6]} 66... Bd4 {[%clk 0:00:33.8]} 67. Kg2 {[%clk 0:00:08.5]}
67... Be3 {[%clk 0:00:33.9]} 68. Kh3 {[%clk 0:00:08.5]} 68... Bd4 {[%clk
0:00:34.2]} 69. Kg2 {[%clk 0:00:08.9]} 69... Be3 {[%clk 0:00:34.6]} 1/2-1/2

[Event "*** Titled Tuesday Blitz"]
[Site "Chess.com"]
[Date "2021.04.06"]
[Round "7"]
[White "GM_LOADING"]
[Black "Zhigalko_Sergei"]
[Result "1/2-1/2"]
[WhiteElo "2546"]
[BlackElo "2887"]
[TimeControl "180+1"]
[EndTime "11:19:31 PDT"]
[Termination "Game drawn by repetition"]

1. e4 {[%clk 0:02:57]} 1... c5 {[%clk 0:03:00.1]} 2. Nf3 {[%clk 0:02:57.3]} 2...
Nc6 {[%clk 0:02:59.8]} 3. d4 {[%clk 0:02:57.7]} 3... cxd4 {[%clk 0:02:58.8]} 4.
Nxd4 {[%clk 0:02:58.6]} 4... Nf6 {[%clk 0:02:58.9]} 5. Nc3 {[%clk 0:02:54.5]}
5... e5 {[%clk 0:02:59.2]} 6. Ndb5 {[%clk 0:02:51.2]} 6... d6 {[%clk 0:02:59.6]}
7. Bg5 {[%clk 0:02:51.2]} 7... a6 {[%clk 0:02:59.4]} 8. Na3 {[%clk 0:02:45.1]}
8... b5 {[%clk 0:02:59.4]} 9. Bxf6 {[%clk 0:02:44.9]} 9... gxf6 {[%clk
0:02:59.7]} 10. Nd5 {[%clk 0:02:45.3]} 10... Bg7 {[%clk 0:02:59.9]} 11. c3
{[%clk 0:02:45]} 11... f5 {[%clk 0:02:59.3]} 12. exf5 {[%clk 0:02:43.4]} 12...
Bxf5 {[%clk 0:03:00.2]} 13. Nc2 {[%clk 0:02:43.8]} 13... Be6 {[%clk 0:03:00.2]}
14. g3 {[%clk 0:02:41.7]} 14... O-O {[%clk 0:02:58.4]} 15. Bg2 {[%clk
0:02:41.6]} 15... a5 {[%clk 0:02:58.8]} 16. O-O {[%clk 0:02:38.9]} 16... Rb8
{[%clk 0:02:59.1]} 17. a3 {[%clk 0:01:51.4]} 17... Kh8 {[%clk 0:02:56.9]} 18.
Re1 {[%clk 0:01:42.3]} 18... Qd7 {[%clk 0:02:50.6]} 19. Qd2 {[%clk 0:01:38.5]}
19... f5 {[%clk 0:02:46.1]} 20. f4 {[%clk 0:01:37.9]} 20... e4 {[%clk
0:02:44.8]} 21. Rad1 {[%clk 0:01:35.8]} 21... Rfd8 {[%clk 0:02:29.5]} 22. Qe2
{[%clk 0:01:31.7]} 22... Ne7 {[%clk 0:02:19.8]} 23. Nce3 {[%clk 0:01:15]} 23...
Nxd5 {[%clk 0:02:17.9]} 24. Nxd5 {[%clk 0:01:15.9]} 24... Qb7 {[%clk 0:02:06.1]}
25. Qd2 {[%clk 0:01:06.9]} 25... b4 {[%clk 0:01:43.5]} 26. axb4 {[%clk
0:01:01.8]} 26... axb4 {[%clk 0:01:43.8]} 27. Nxb4 {[%clk 0:00:44.9]} 27... d5
{[%clk 0:01:43.7]} 28. Nc2 {[%clk 0:00:42.9]} 28... Qxb2 {[%clk 0:01:39.2]} 29.
Nd4 {[%clk 0:00:43.5]} 29... Qb6 {[%clk 0:01:34.6]} 30. Kh1 {[%clk 0:00:43.4]}
30... Bd7 {[%clk 0:01:34.9]} 31. Bh3 {[%clk 0:00:40.6]} 31... Qg6 {[%clk
0:01:25]} 32. Rb1 {[%clk 0:00:26]} 32... Rbc8 {[%clk 0:01:17.9]} 33. Rb7 {[%clk
0:00:22.2]} 33... Qh5 {[%clk 0:01:02.7]} 34. Rxd7 {[%clk 0:00:06.1]} 34... Qxh3
{[%clk 0:01:02.8]} 35. Rxd8+ {[%clk 0:00:05.8]} 35... Rxd8 {[%clk 0:01:03.7]}
36. Ne6 {[%clk 0:00:06.3]} 36... Rd7 {[%clk 0:00:58.1]} 37. Nxg7 {[%clk
0:00:06.5]} 37... Kxg7 {[%clk 0:00:58.1]} 38. Qd4+ {[%clk 0:00:07.1]} 38... Kf7
{[%clk 0:00:54.1]} 39. c4 {[%clk 0:00:07.6]} 39... Qh5 {[%clk 0:00:51.1]} 40.
cxd5 {[%clk 0:00:07.5]} 40... Qf3+ {[%clk 0:00:07.6]} 41. Kg1 {[%clk 0:00:07.8]}
41... Qd3 {[%clk 0:00:07]} 42. Qxd3 {[%clk 0:00:07.6]} 42... exd3 {[%clk
0:00:07.9]} 43. Rd1 {[%clk 0:00:05.9]} 43... Rxd5 {[%clk 0:00:08]} 44. Kf2
{[%clk 0:00:06.6]} 44... Ra5 {[%clk 0:00:03.1]} 45. Ke3 {[%clk 0:00:03.7]} 45...
Ra2 {[%clk 0:00:02.4]} 46. Rd2 {[%clk 0:00:04.2]} 46... Ra1 {[%clk 0:00:02.7]}
47. Kxd3 {[%clk 0:00:03.3]} 47... Ra3+ {[%clk 0:00:02.3]} 48. Kd4 {[%clk
0:00:02.7]} 48... Ke6 {[%clk 0:00:03.2]} 49. Re2+ {[%clk 0:00:02.9]} 49... Kf6
{[%clk 0:00:03.6]} 50. Re8 {[%clk 0:00:03.3]} 50... Ra2 {[%clk 0:00:03.5]} 51.
Rf8+ {[%clk 0:00:02.9]} 51... Ke6 {[%clk 0:00:03.4]} 52. Re8+ {[%clk 0:00:03.2]}
52... Kf6 {[%clk 0:00:03.5]} 53. Rf8+ {[%clk 0:00:03.4]} 53... Ke6 {[%clk
0:00:03.6]} 54. Re8+ {[%clk 0:00:03.9]} 54... Kf6 {[%clk 0:00:03.7]} 1/2-1/2

[Event "*** Titled Tuesday Blitz"]
[Site "Chess.com"]
[Date "2021.04.06"]
[Round "7"]
[White "Sergey85Rodchenkov"]
[Black "vinniethepooh"]
[Result "0-1"]
[WhiteElo "2529"]
[BlackElo "2724"]
[TimeControl "180+1"]
[EndTime "11:19:33 PDT"]
[Termination "vinniethepooh won by checkmate"]

1. e4 {[%clk 0:03:00.9]} 1... c5 {[%clk 0:02:59.9]} 2. Nf3 {[%clk 0:03:00.6]}
2... d6 {[%clk 0:03:00.2]} 3. d4 {[%clk 0:03:00.6]} 3... cxd4 {[%clk 0:03:01.1]}
4. Nxd4 {[%clk 0:03:01.1]} 4... Nf6 {[%clk 0:03:01.7]} 5. Nc3 {[%clk 0:03:00.4]}
5... a6 {[%clk 0:03:02.3]} 6. Bc4 {[%clk 0:03:00.5]} 6... e6 {[%clk 0:03:02.5]}
7. Bb3 {[%clk 0:03:00.8]} 7... Nbd7 {[%clk 0:03:02.8]} 8. f4 {[%clk 0:03:00.6]}
8... Nc5 {[%clk 0:03:03.1]} 9. f5 {[%clk 0:03:01.1]} 9... e5 {[%clk 0:02:59.2]}
10. Nde2 {[%clk 0:03:00.6]} 10... h6 {[%clk 0:02:49]} 11. Ng3 {[%clk 0:02:57.9]}
11... b5 {[%clk 0:02:44.5]} 12. Be3 {[%clk 0:02:57.1]} 12... Bb7 {[%clk
0:02:41.9]} 13. O-O {[%clk 0:02:54.4]} 13... Be7 {[%clk 0:02:24.7]} 14. Nh5
{[%clk 0:02:47.5]} 14... Nxh5 {[%clk 0:02:23.2]} 15. Qxh5 {[%clk 0:02:46]} 15...
Nxb3 {[%clk 0:02:23.7]} 16. axb3 {[%clk 0:02:45.4]} 16... b4 {[%clk 0:02:11]}
17. Nd5 {[%clk 0:02:44.6]} 17... Bxd5 {[%clk 0:02:11.4]} 18. exd5 {[%clk
0:02:44.9]} 18... Bg5 {[%clk 0:02:12.1]} 19. Bf2 {[%clk 0:02:40.9]} 19... Qc8
{[%clk 0:01:40.7]} 20. h4 {[%clk 0:02:24.8]} 20... Bf6 {[%clk 0:01:35.4]} 21. g4
{[%clk 0:02:04.4]} 21... Ke7 {[%clk 0:01:34.2]} 22. Rfc1 {[%clk 0:01:57.2]}
22... Qe8 {[%clk 0:01:07]} 23. g5 {[%clk 0:01:47.8]} 23... hxg5 {[%clk
0:01:07.9]} 24. Qg4 {[%clk 0:01:47.9]} 24... gxh4 {[%clk 0:00:57.9]} 25. Qxb4
{[%clk 0:01:47.5]} 25... Qb5 {[%clk 0:00:57.5]} 26. Qd2 {[%clk 0:01:43.4]} 26...
Rh5 {[%clk 0:00:50.9]} 27. c4 {[%clk 0:01:39.8]} 27... Qxb3 {[%clk 0:00:48.1]}
28. Ra3 {[%clk 0:01:39.4]} 28... Qb7 {[%clk 0:00:45.8]} 29. c5 {[%clk
0:01:34.7]} 29... dxc5 {[%clk 0:00:42.6]} 30. Bxc5+ {[%clk 0:01:33.6]} 30... Kd7
{[%clk 0:00:40.5]} 31. Rac3 {[%clk 0:01:20.3]} 31... Rc8 {[%clk 0:00:35.6]} 32.
b4 {[%clk 0:01:16.3]} 32... Rg5+ {[%clk 0:00:28.3]} 33. Kh2 {[%clk 0:01:12]}
33... h3 {[%clk 0:00:28.3]} 34. Rxh3 {[%clk 0:01:09.6]} 34... Rg4 {[%clk
0:00:27.7]} 35. Rd1 {[%clk 0:01:05.7]} 35... Bg5 {[%clk 0:00:27.3]} 36. Qe2
{[%clk 0:00:56.6]} 36... Bf4+ {[%clk 0:00:23.7]} 37. Kh1 {[%clk 0:00:56.7]}
37... Rg5 {[%clk 0:00:24.3]} 38. Rh5 {[%clk 0:00:49.1]} 38... Qb5 {[%clk
0:00:18.6]} 39. Qf3 {[%clk 0:00:46.3]} 39... Qc4 {[%clk 0:00:11.4]} 40. Rxg5
{[%clk 0:00:31.1]} 40... Bxg5 {[%clk 0:00:12.3]} 41. d6 {[%clk 0:00:20.1]} 41...
Rh8+ {[%clk 0:00:09.6]} 42. Kg1 {[%clk 0:00:20.4]} 42... e4 {[%clk 0:00:07.6]}
43. Qg4 {[%clk 0:00:16.8]} 43... f6 {[%clk 0:00:08.1]} 44. Qg2 {[%clk
0:00:13.9]} 44... Rh4 {[%clk 0:00:06]} 45. Bf2 {[%clk 0:00:10.8]} 45... Rf4
{[%clk 0:00:05.4]} 46. Be3 {[%clk 0:00:10.3]} 46... Rxf5 {[%clk 0:00:05.2]} 47.
Bf2 {[%clk 0:00:09.3]} 47... Rd5 {[%clk 0:00:04.8]} 48. Qg4+ {[%clk 0:00:09.5]}
48... Kxd6 {[%clk 0:00:04.6]} 49. Bg3+ {[%clk 0:00:09]} 49... Ke7 {[%clk
0:00:05.1]} 50. Re1 {[%clk 0:00:08.2]} 50... Qd4+ {[%clk 0:00:04.9]} 51. Kh1
{[%clk 0:00:07.8]} 51... Qd3 {[%clk 0:00:03.5]} 52. Rxe4+ {[%clk 0:00:07]} 52...
Kf7 {[%clk 0:00:03.4]} 53. Qe6+ {[%clk 0:00:07.3]} 53... Kg6 {[%clk 0:00:04]}
54. Rg4 {[%clk 0:00:05.4]} 54... Qd1+ {[%clk 0:00:04.4]} 55. Kh2 {[%clk
0:00:04.9]} 55... Rd2+ {[%clk 0:00:04.6]} 56. Kh3 {[%clk 0:00:04.6]} 56... Qh1+
{[%clk 0:00:04.9]} 57. Bh2 {[%clk 0:00:05]} 57... Qxh2# {[%clk 0:00:05.7]} 0-1

[Event "*** Titled Tuesday Blitz"]
[Site "Chess.com"]
[Date "2021.04.06"]
[Round "7"]
[White "Ajedrez_con_German"]
[Black "paulrusan"]
[Result "1-0"]
[WhiteElo "2468"]
[BlackElo "2279"]
[TimeControl "180+1"]
[EndTime "11:19:37 PDT"]
[Termination "Ajedrez_con_German won by checkmate"]

1. d4 {[%clk 0:03:00.9]} 1... Nf6 {[%clk 0:02:57.4]} 2. Bf4 {[%clk 0:02:59.7]}
2... c5 {[%clk 0:02:53.8]} 3. c3 {[%clk 0:02:58.3]} 3... e6 {[%clk 0:02:49.4]}
4. e3 {[%clk 0:02:57.4]} 4... Qb6 {[%clk 0:02:48.7]} 5. Qb3 {[%clk 0:02:56.6]}
5... d5 {[%clk 0:02:48.7]} 6. Nd2 {[%clk 0:02:54.8]} 6... Nc6 {[%clk 0:02:48.2]}
7. Ngf3 {[%clk 0:02:53.6]} 7... Bd7 {[%clk 0:02:44.8]} 8. h3 {[%clk 0:02:50]}
8... c4 {[%clk 0:02:38.9]} 9. Qc2 {[%clk 0:02:48.8]} 9... Be7 {[%clk 0:02:37.1]}
10. Be2 {[%clk 0:02:48]} 10... O-O {[%clk 0:02:36.3]} 11. O-O {[%clk 0:02:47.3]}
11... a5 {[%clk 0:02:29.6]} 12. Ne5 {[%clk 0:02:44.9]} 12... Be8 {[%clk
0:02:28.2]} 13. Bf3 {[%clk 0:02:40.2]} 13... Nxe5 {[%clk 0:02:20.6]} 14. Bxe5
{[%clk 0:02:39.8]} 14... Nd7 {[%clk 0:02:20.3]} 15. Bg3 {[%clk 0:02:38.2]} 15...
f5 {[%clk 0:02:19.6]} 16. b3 {[%clk 0:02:32]} 16... Rc8 {[%clk 0:02:17.4]} 17.
bxc4 {[%clk 0:02:31.1]} 17... dxc4 {[%clk 0:02:16.8]} 18. Rab1 {[%clk
0:02:30.3]} 18... Qd8 {[%clk 0:02:11.8]} 19. Bxb7 {[%clk 0:02:23.4]} 19... Nf6
{[%clk 0:02:08.8]} 20. Bxc8 {[%clk 0:02:19.5]} 20... Qxc8 {[%clk 0:02:09.5]} 21.
Bh4 {[%clk 0:02:09.2]} 21... Bc6 {[%clk 0:02:08.7]} 22. Rb6 {[%clk 0:01:52.7]}
22... Bd8 {[%clk 0:01:59.5]} 23. Rxc6 {[%clk 0:01:49.9]} 23... Qxc6 {[%clk
0:01:58.7]} 24. Bxf6 {[%clk 0:01:48.6]} 24... Bxf6 {[%clk 0:01:57.9]} 25. Rb1
{[%clk 0:01:47.6]} 25... g6 {[%clk 0:01:54.9]} 26. Qb2 {[%clk 0:01:46.3]} 26...
e5 {[%clk 0:01:53.3]} 27. Qb5 {[%clk 0:01:37.8]} 27... Rc8 {[%clk 0:01:52.4]}
28. dxe5 {[%clk 0:01:33.6]} 28... Be7 {[%clk 0:01:45.3]} 29. Nf3 {[%clk
0:01:32.2]} 29... Qe4 {[%clk 0:01:36.7]} 30. Rd1 {[%clk 0:01:25.1]} 30... f4
{[%clk 0:01:30.8]} 31. Qd7 {[%clk 0:01:08.3]} 31... Rd8 {[%clk 0:01:24.4]} 32.
Qe6+ {[%clk 0:01:06.8]} 32... Kf8 {[%clk 0:01:23.9]} 33. Rxd8+ {[%clk
0:01:01.8]} 33... Bxd8 {[%clk 0:01:24]} 34. exf4 {[%clk 0:00:52.4]} 34... Qxf4
{[%clk 0:01:21.3]} 35. Qd6+ {[%clk 0:00:45.4]} 35... Be7 {[%clk 0:01:20.5]} 36.
Qd4 {[%clk 0:00:40.2]} 36... Qxd4 {[%clk 0:01:07.3]} 37. Nxd4 {[%clk 0:00:39.8]}
37... Ba3 {[%clk 0:00:55.8]} 38. Kf1 {[%clk 0:00:37.4]} 38... Bb2 {[%clk
0:00:54.3]} 39. Nb5 {[%clk 0:00:33.7]} 39... a4 {[%clk 0:00:51.5]} 40. Ke2
{[%clk 0:00:31.1]} 40... Ke7 {[%clk 0:00:50.8]} 41. Ke3 {[%clk 0:00:26.1]} 41...
Ke6 {[%clk 0:00:50.4]} 42. Kd4 {[%clk 0:00:25.9]} 42... a3 {[%clk 0:00:43.7]}
43. Kxc4 {[%clk 0:00:24.5]} 43... Kxe5 {[%clk 0:00:43.5]} 44. Kb3 {[%clk
0:00:24.4]} 44... Ke4 {[%clk 0:00:40]} 45. Nxa3 {[%clk 0:00:24.5]} 45... Bc1
{[%clk 0:00:37.6]} 46. Nc4 {[%clk 0:00:23.3]} 46... Kd3 {[%clk 0:00:34.5]} 47.
a4 {[%clk 0:00:22.5]} 47... Ke2 {[%clk 0:00:33]} 48. a5 {[%clk 0:00:22.5]} 48...
Bf4 {[%clk 0:00:30.7]} 49. a6 {[%clk 0:00:22.7]} 49... Bb8 {[%clk 0:00:30.6]}
50. Ne5 {[%clk 0:00:20.4]} 50... Bxe5 {[%clk 0:00:22.3]} 51. a7 {[%clk
0:00:20.3]} 51... Kxf2 {[%clk 0:00:22.7]} 52. a8=Q {[%clk 0:00:20.4]} 52... h5
{[%clk 0:00:20.1]} 53. Qf3+ {[%clk 0:00:19.8]} 53... Kg1 {[%clk 0:00:19.9]} 54.
g4 {[%clk 0:00:20.4]} 54... h4 {[%clk 0:00:19]} 55. g5 {[%clk 0:00:20.8]} 55...
Bg3 {[%clk 0:00:18.1]} 56. c4 {[%clk 0:00:17.2]} 56... Kh2 {[%clk 0:00:17.8]}
57. Qg4 {[%clk 0:00:16.7]} 57... Kg2 {[%clk 0:00:15.3]} 58. c5 {[%clk
0:00:16.6]} 58... Kh1 {[%clk 0:00:14.7]} 59. c6 {[%clk 0:00:17.5]} 59... Kh2
{[%clk 0:00:14.9]} 60. Kc4 {[%clk 0:00:16.1]} 60... Kh1 {[%clk 0:00:14.5]} 61.
Kd3 {[%clk 0:00:16.2]} 61... Kh2 {[%clk 0:00:14.4]} 62. Ke2 {[%clk 0:00:16.6]}
62... Kh1 {[%clk 0:00:14.3]} 63. Kf1 {[%clk 0:00:14.4]} 63... Kh2 {[%clk
0:00:14.5]} 64. c7 {[%clk 0:00:12.2]} 64... Bxc7 {[%clk 0:00:05.5]} 65. Qg2#
{[%clk 0:00:11.8]} 1-0